fUSD/lending_fUSD_20240902
["ID","MTS","AMOUNT","RATE_DAILY","PERIOD"]
[336995370,1725298232058,-1098.10124655,0.000145,5]
[336995371,1725298232069,-301.89875345,0.000145,5]
[336995372,1725298232079,-188.33,0.0001459,2]
[336995373,1725298232088,-386.50123817,0.000146,5]
[336995374,1725298232099,-2194.55656055,0.000146,5]
[336995375,1725298232110,-318.94220128,0.000146,5]
[336995376,1725298232119,-234.30108455,0.000147,5]
[336995377,1725298232130,-500.53060722,0.000147,5]
[336995378,1725298232143,-251.35461498,0.000147,5]
[336995379,1725298232169,-443.53762851,0.000147,5]
[336995380,1725298232181,-1300.0,0.000147,5]
[336995381,1725298232195,-1211.0,0.000147,5]
[336995382,1725298232206,-459.27606474,0.000147,5]
[336995383,1725298232216,-300.0,0.00014799,2]
[336995384,1725298232226,-5534.67751061,0.000148,5]
[336995385,1725298232239,-365.32248939,0.000148,5]
[336995386,1725298232248,-165.29072006,0.000149,2]
[336995387,1725298232258,-2435.87433055,0.000149,5]
[336995393,1725298238146,-531.06930366,0.000149,5]
[336995394,1725298238157,-597.10937052,0.000149,5]
[336995395,1725298238171,-3835.94699527,0.000149,5]
[336995396,1725298238180,-395.85881481,0.000149,2]
[336995397,1725298238190,-937.67335708,0.000149,2]
[336995398,1725298238201,-500.0,0.00014973,2]
[336995399,1725298238210,-499.99,0.00014973,2]
[336995400,1725298238219,-150.99,0.00014973,2]
[336995401,1725298238230,-10344.38584572,0.0001499,2]
[336995402,1725298238239,-422.35,0.0001499,3]
[336995403,1725298238249,-150.74,0.0001499,2]
[336995404,1725298238260,-577.76029508,0.00014999,2]
[336995405,1725298238270,-106845.68305583,0.00015,2]
[336995406,1725298238279,-12699.45739621,0.00015,2]
[336995407,1725298238291,-4990.65058715,0.00015,2]
[336995408,1725298238302,-1257.43565756,0.00015,2]
[336995409,1725298238313,-583.09995883,0.00015,2]
[336995410,1725298238329,-2087.21303329,0.00015,2]
[336995411,1725298238344,-3391.02565311,0.00015,2]
[336995501,1725298240258,-304.8065946,0.000149,2]
[336995502,1725298240270,-664.84870237,0.00015,2]
[336995503,1725298240467,-19856.47289777,0.00015,2]
[336995504,1725298240479,-1458.91842534,0.00015,2]
[336995505,1725298240493,-738.36533904,0.00015,2]
[336995506,1725298240504,-297.78928158,0.00015,2]
[336995507,1725298240515,-466.91874511,0.00015,2]
[336995508,1725298240526,-642.79791123,0.00015,2]
[336995509,1725298240538,-998.486475,0.00015,2]
[336995510,1725298240548,-3015.37057037,0.00015,2]
[336995511,1725298240559,-2110.66568425,0.00015,2]
[336995512,1725298240571,-79453.25159359,0.00015,2]
[336995513,1725298240582,-391.951146,0.00015,2]
[336995514,1725298240593,-6007.80077973,0.00015,2]
[336995515,1725298240604,-4136.02606297,0.00015,2]
[336995516,1725298240615,-2925.98626232,0.00015,2]
[336995519,1725298243074,-7300.0,0.00015,2]
[336995520,1725298243086,-1720.3100005,0.00015,2]
[336995521,1725298243098,-13779.17179148,0.00015,2]
[336995522,1725298243136,-618.59,0.00015,2]
[336995523,1725298243147,-177805.24882099,0.00015,2]
[336995524,1725298243159,-12722.77961447,0.00015,2]
[336995525,1725298243201,-359.73856219,0.00015,2]
[336995526,1725298243212,-783.88604338,0.00015,2]
[336995527,1725298243224,-5420.415,0.00015,2]
[336995528,1725298243236,-5000.0,0.00015,2]
[336995529,1725298243247,-1302.1840501,0.00015,2]
[336995530,1725298243258,-636.49603942,0.00015,2]
[336995531,1725298243269,-501.86744235,0.00015,2]
[336995534,1725298244566,-328.04999985,0.00015,2]
[336995535,1725298244578,-3192.9558,0.00015,2]
[336995536,1725298244589,-898345.38091754,0.00015,2]
[336995543,1725298246168,-565.632,0.00014925,2]
[336995544,1725298246178,-6204.65799999,0.00015,2]
[336995545,1725298246189,-5930.48493681,0.00015,2]
[336995546,1725298246200,-5486.25292594,0.00015,2]
[336995547,1725298246212,-63336.92889818,0.00015,2]
[336995548,1725298246260,-2985.11727615,0.00015,2]
[336995549,1725298246328,-3106.77721964,0.00015,2]
[336995550,1725298246340,-1470.51803953,0.00015,2]
[336995551,1725298246389,-6603.51490826,0.00015,2]
[336995552,1725298246400,-2289.91559988,0.00015,2]
[336995553,1725298246414,-656.37,0.00015,2]
[336995554,1725298246450,-792.73224283,0.00015,2]
[336995555,1725298253236,152.59,0.00010959,2]
[336995556,1725298497850,213.98,0.00024922,120]
[336995557,1725298742841,-589.0,0.00014748,2]
[336995558,1725298742867,-1185.41627808,0.0001485,2]
[336995559,1725298742892,-267.5252,0.000149,2]
[336995560,1725298742916,-3143.70047368,0.000149,2]
[336995561,1725298742941,-305.47677564,0.000149,2]
[336995562,1725298742967,-179.0820506,0.000149,2]
[336995563,1725298742992,-505.80481578,0.00014973,2]
[336995564,1725298743209,-207823.99440622,0.00015,2]
[336995565,1725299017049,191.61,0.00024722,120]
[336995567,1725299204304,153.92,0.00012967,2]
[336995568,1725299248029,760.0,0.00012967,2]
[336995569,1725299249892,250.0,0.00012967,2]
[336995571,1725299297032,218.78,0.00010959,2]
[336995572,1725299307882,550.0,0.00011,2]
[336995573,1725299328580,250.0,0.00012967,2]
[336995574,1725299332288,230.01,0.00012967,2]
[336995591,1725299432503,-1205.0,0.00013388,2]
[336995592,1725299432515,-240.19972517,0.00013388,2]
[336995593,1725299432524,-150.0,0.00013488,2]
[336995594,1725299432533,-150.0,0.00013488,2]
[336995595,1725299432542,-150.0,0.00013488,2]
[336995596,1725299432552,-150.0,0.00013488,2]
[336995597,1725299432561,-150.0,0.00013488,2]
[336995598,1725299432570,-150.0,0.00013488,2]
[336995599,1725299432579,-150.0,0.00013488,2]
[336995600,1725299432588,-150.0,0.00013503,2]
[336995601,1725299432597,-150.0,0.00013519,2]
[336995602,1725299432605,-150.0,0.00013523,2]
[336995603,1725299432615,-150.0,0.00013533,2]
[336995604,1725299432624,-150.0,0.00013534,2]
[336995605,1725299432634,-150.0,0.00013549,2]
[336995606,1725299432643,-150.0,0.00013559,2]
[336995607,1725299432652,-150.0,0.00013565,2]
[336995608,1725299432661,-499.99,0.00013565,2]
[336995609,1725299432670,-300.0,0.00013577,2]
[336995610,1725299432679,-150.0,0.00013578,2]
[336995611,1725299432693,-150.0,0.0001358,2]
[336995612,1725299432702,-150.0,0.00013595,2]
[336995614,1725299432711,-59.81027483,0.00013596,2]
[336995615,1725299432722,-90.18972517,0.00013596,2]
[336995616,1725299432733,-201.0,0.00013602,2]
[336995617,1725299432742,-150.0,0.00013611,2]
[336995618,1725299432751,-150.0,0.00013624,2]
[336995619,1725299432760,-150.0,0.00013624,2]
[336995620,1725299432772,-137.1121816,0.00013627,2]
[336995621,1725299432806,-12.8878184,0.00013627,2]
[336995622,1725299432815,-150.0,0.0001363,2]
[336995623,1725299432824,-150.0,0.00013642,2]
[336995624,1725299432833,-137.56154201,0.00013658,2]
[336995625,1725299432844,-12.43845799,0.00013658,2]
[336995626,1725299432853,-150.0,0.00013666,2]
[336995627,1725299432862,-150.0,0.00013669,2]
[336995628,1725299432873,-150.0,0.00013673,2]
[336995629,1725299432882,-150.0,0.00013689,2]
[336995630,1725299432891,-150.0,0.00013702,2]
[336995631,1725299432900,-38.00484408,0.00013704,2]
[336995632,1725299432919,-111.99515592,0.00013704,2]
[336995633,1725299432929,-150.0,0.00013715,2]
[336995634,1725299432938,-150.0,0.00013719,2]
[336995635,1725299432947,-150.0,0.00013735,2]
[336995636,1725299432957,-150.0,0.00013737,2]
[336995637,1725299432966,-150.0,0.0001375,2]
[336995638,1725299432975,-150.0,0.0001376,2]
[336995639,1725299432984,-150.0,0.0001376,2]
[336995640,1725299432993,-150.0,0.00013766,2]
[336995641,1725299433003,-150.0,0.00013773,2]
[336995642,1725299433012,-150.0,0.00013781,2]
[336995643,1725299433021,-150.0,0.00013797,2]
[336995644,1725299433031,-150.0,0.00013806,2]
[336995645,1725299433041,-150.0,0.00013809,2]
[336995646,1725299433053,-150.0,0.00013812,2]
[336995647,1725299433063,-150.0,0.00013828,2]
[336995648,1725299433073,-150.0,0.00013843,2]
[336995649,1725299433083,-150.0,0.00013844,2]
[336995650,1725299433092,-150.0,0.00013851,2]
[336995651,1725299433102,-150.0,0.00013858,2]
[336995652,1725299433113,-150.0,0.00013874,2]
[336995653,1725299433122,-150.0,0.0001388,2]
[336995654,1725299433131,-150.0,0.00013889,2]
[336995655,1725299433141,-150.0,0.00013896,2]
[336995656,1725299433151,-150.0,0.00013896,2]
[336995657,1725299433160,-150.0,0.00013905,2]
[336995658,1725299433170,-150.0,0.00013916,2]
[336995659,1725299433180,-150.0,0.0001392,2]
[336995660,1725299433189,-150.0,0.00013936,2]
[336995661,1725299433199,-150.0,0.00013942,2]
[336995662,1725299433208,-150.0,0.00013951,2]
[336995663,1725299433218,-150.0,0.00013952,2]
[336995664,1725299433228,-150.0,0.00013967,2]
[336995665,1725299433237,-150.0,0.00013982,2]
[336995666,1725299433247,-150.0,0.00013987,2]
[336995667,1725299433256,-150.0,0.00013987,2]
[336995668,1725299433266,-150.0,0.00013998,2]
[336995669,1725299433275,-150.0,0.00014013,2]
[336995670,1725299433284,-150.0,0.00014023,2]
[336995671,1725299433293,-150.0,0.00014028,2]
[336995672,1725299433303,-150.0,0.00014033,2]
[336995673,1725299433312,-150.0,0.00014033,2]
[336995674,1725299433321,-150.0,0.00014044,2]
[336995675,1725299433330,-150.0,0.00014059,2]
[336995676,1725299433340,-150.0,0.00014059,2]
[336995677,1725299433349,-150.0,0.00014075,2]
[336995678,1725299433359,-150.0,0.00014078,2]
[336995679,1725299433368,-150.0,0.0001409,2]
[336995680,1725299433377,-150.0,0.00014094,2]
[336995681,1725299433387,-150.0,0.00014106,2]
[336995682,1725299433396,-150.0,0.00014121,2]
[336995683,1725299433405,-150.0,0.00014123,2]
[336995684,1725299433414,-150.0,0.0001413,2]
[336995685,1725299433423,-150.0,0.00014137,2]
[336995686,1725299433432,-150.0,0.00014152,2]
[336995687,1725299433441,-150.0,0.00014166,2]
[336995688,1725299433450,-150.0,0.00014167,2]
[336995689,1725299433459,-150.0,0.00014169,2]
[336995690,1725299433468,-150.0,0.00014169,2]
[336995691,1725299433477,-150.0,0.00014183,2]
[336995692,1725299433487,-150.0,0.00014198,2]
[336995693,1725299433496,-150.0,0.00014201,2]
[336995694,1725299433505,-150.0,0.00014214,2]
[336995695,1725299433515,-150.0,0.00014214,2]
[336995696,1725299433524,-150.0,0.00014229,2]
[336995697,1725299433533,-150.0,0.00014237,2]
[336995698,1725299433543,-150.0,0.00014237,2]
[336995699,1725299433552,-150.0,0.00014245,2]
[336995700,1725299433562,-150.0,0.0001426,2]
[336995701,1725299433572,-41.08330649,0.0001426,2]
[336995702,1725299433584,-108.91669351,0.0001426,2]
[336995703,1725299433593,-150.0,0.00014273,2]
[336995704,1725299433602,-150.0,0.00014276,2]
[336995705,1725299433611,-150.0,0.00014291,2]
[336995706,1725299433621,-150.0,0.00014305,2]
[336995707,1725299433630,-150.0,0.00014305,2]
[336995708,1725299433639,-150.0,0.00014307,2]
[336995709,1725299433648,-150.0,0.00014308,2]
[336995710,1725299433657,-150.0,0.00014322,2]
[336995711,1725299433667,-150.0,0.00014337,2]
[336995712,1725299433676,-150.0,0.00014344,2]
[336995713,1725299433685,-150.0,0.00014351,2]
[336995714,1725299433698,-150.0,0.00014353,2]
[336995715,1725299433708,-150.0,0.00014368,2]
[336995716,1725299433717,-150.0,0.0001438,2]
[336995717,1725299433727,-150.0,0.00014384,2]
[336995718,1725299433736,-150.0,0.00014396,2]
[336995719,1725299433746,-150.0,0.00014399,2]
[336995720,1725299433756,-150.0,0.00014415,2]
[336995721,1725299433765,-150.0,0.00014415,2]
[336995722,1725299433776,-150.0,0.0001443,2]
[336995723,1725299433785,-150.0,0.00014441,2]
[336995724,1725299433794,-150.0,0.00014441,2]
[336995725,1725299433804,-150.0,0.00014446,2]
[336995726,1725299433813,-150.0,0.00014451,2]
[336995727,1725299433822,-150.0,0.00014461,2]
[336995728,1725299433832,-150.0,0.00014476,2]
[336995729,1725299433841,-150.0,0.00014487,2]
[336995730,1725299433850,-150.0,0.00014487,2]
[336995731,1725299433859,-150.0,0.00014492,2]
[336995732,1725299433869,-150.0,0.00014507,2]
[336995733,1725299433878,-150.0,0.00014522,2]
[336995734,1725299433888,-150.0,0.00014523,2]
[336995735,1725299433898,-150.0,0.00014532,2]
[336995736,1725299433907,-150.0,0.00014538,2]
[336995737,1725299433916,-150.0,0.00014554,2]
[336995738,1725299433925,-150.0,0.00014558,2]
[336995739,1725299433935,-150.0,0.00014569,2]
[336995740,1725299433944,-67.08330649,0.00014578,2]
[336995743,1725299438407,-82.91669351,0.00014578,2]
[336995744,1725299438419,-150.0,0.00014578,2]
[336995745,1725299438429,-150.0,0.00014585,2]
[336995746,1725299438440,-100.81885559,0.00014587,2]
[336995747,1725299438463,-534.4333347,0.00014587,2]
[336995748,1725299438522,-124.74780971,0.00014587,2]
[336995749,1725299438533,-150.0,0.00014594,2]
[336995750,1725299438544,-150.0,0.000146,2]
[336995751,1725299438554,-150.0,0.00014616,2]
[336995752,1725299438564,-150.0,0.00014623,2]
[336995753,1725299438574,-150.0,0.00014629,2]
[336995754,1725299438583,-150.0,0.00014631,2]
[336995755,1725299438594,-150.0,0.00014646,2]
[336995756,1725299438604,-150.0,0.00014662,2]
[336995757,1725299438614,-150.0,0.00014665,2]
[336995758,1725299438624,-150.0,0.00014668,2]
[336995759,1725299438634,-150.0,0.00014677,2]
[336995760,1725299438645,-150.0,0.00014693,2]
[336995761,1725299438655,-300.0,0.000147,5]
[336995762,1725299438667,-150.0,0.00014701,2]
[336995763,1725299438677,-150.0,0.00014708,2]
[336995764,1725299438691,-150.0,0.00014714,2]
[336995766,1725299438702,-150.0,0.00014714,2]
[336995768,1725299438712,-150.0,0.00014724,2]
[336995770,1725299438723,-150.0,0.00014737,2]
[336995772,1725299438733,-150.0,0.00014739,2]
[336995775,1725299438743,-150.0,0.00014755,2]
[336995777,1725299438754,-150.0,0.00014759,2]
[336995779,1725299438764,-150.0,0.0001477,2]
[336995781,1725299438777,-150.0,0.00014772,2]
[336995783,1725299438788,-150.0,0.00014785,2]
[336995785,1725299438798,-700.0,0.000148,5]
[336995787,1725299438809,-150.0,0.00014801,2]
[336995789,1725299438819,-150.0,0.00014805,2]
[336995792,1725299438829,-150.0,0.00014808,2]
[336995794,1725299438839,-150.0,0.00014816,2]
[336995796,1725299438849,-150.0,0.00014832,2]
[336995798,1725299438859,-150.0,0.00014844,2]
[336995800,1725299438870,-150.0,0.00014847,2]
[336995802,1725299438880,-150.0,0.0001485,2]
[336995804,1725299438890,-150.0,0.0001485,2]
[336995806,1725299438900,-150.0,0.00014863,2]
[336995808,1725299438911,-150.0,0.00014877,2]
[336995810,1725299438922,-150.0,0.00014878,2]
[336995812,1725299438933,-150.0,0.00014879,2]
[336995815,1725299438944,-420.0,0.00014881,2]
[336995817,1725299438955,-150.0,0.00014894,2]
[336995819,1725299438966,-150.0,0.00014895,2]
[336995821,1725299438978,-161.95141977,0.000149,2]
[336995823,1725299438989,-4094.7968003,0.000149,2]
[336995825,1725299438999,-1100.0,0.000149,5]
[336995827,1725299439008,-557.8916,0.000149,2]
[336995829,1725299439018,-179.08205058,0.000149,2]
[336995831,1725299439028,-150.0,0.00014909,2]
[336995834,1725299439038,-150.0,0.00014915,2]
[336995836,1725299439048,-150.0,0.00014925,2]
[336995838,1725299439059,-150.0,0.0001494,2]
[336995840,1725299439069,-150.0,0.00014941,2]
[336995842,1725299439079,-150.0,0.00014951,2]
[336995844,1725299439089,-150.0,0.00014955,2]
[336995846,1725299439100,-150.0,0.00014971,2]
[336995848,1725299439111,-231.85908553,0.00014986,2]
[336995850,1725299439121,-150.0,0.00014986,2]
[336995852,1725299439132,-150.0,0.00014986,2]
[336995854,1725299439142,-174.13664659,0.00014986,2]
[336995856,1725299439153,-268.6406169,0.00014986,2]
[336995859,1725299439165,-150.0,0.00014986,2]
[336995861,1725299439175,-150.74,0.0001499,2]
[336995863,1725299439186,-498914.91056684,0.00015,2]
[336995865,1725299439200,-2071.94601358,0.00015,2]
[336995914,1725299440374,-835.14114321,0.00015,2]
[336995915,1725299440387,-1444.0,0.00015,2]
[336995916,1725299440401,-335.19066551,0.00015,2]
[336995917,1725299440413,-1198.510641,0.00015,2]
[336995918,1725299440424,-2074.542965,0.00015,2]
[336995919,1725299440575,-1261.5487965,0.00015,2]
[336995934,1725299443359,-17362.55801782,0.00015,2]
[336995935,1725299443372,-2248.95674392,0.00015,2]
[336995936,1725299443473,-1377.53454,0.00015,2]
[336995937,1725299443484,-8823.99346952,0.00015,2]
[336995938,1725299443497,-3972.09929284,0.00015,2]
[336995939,1725299443508,-304.4341043,0.00015,2]
[336995940,1725299443532,-1118.97,0.00015,2]
[336995941,1725299443544,-376.33922985,0.00015,2]
[336995942,1725299443595,-5979.84278337,0.00015,2]
[336995943,1725299443607,-344.26431234,0.00015,2]
[336995944,1725299443619,-614.29174979,0.00015,2]
[336995945,1725299443633,-2551.14997692,0.00015,2]
[336996010,1725299446412,-594.27060504,0.00015,2]
[336996012,1725299446424,-611.804,0.00015,2]
[336996018,1725299446471,-6372.4344052,0.00015,2]
[336996020,1725299446483,-530.6,0.00015,2]
[336996026,1725299446531,-1240.6564181,0.00015,2]
[336996028,1725299446543,-3561.05737982,0.00015,2]
[336996030,1725299446554,-1321.4022825,0.00015,2]
[336996041,1725299446646,-1869.3662922,0.00015,2]
[336996043,1725299446661,-7015.37649541,0.00015,2]
[336996045,1725299446673,-3014.74835214,0.00015,2]
[336996048,1725299446684,-260.0,0.00015,2]
[336996051,1725299446707,-1040.67985396,0.00015,2]
[336996053,1725299446718,-403.53386833,0.00015,2]
[337002687,1725299575388,-351.1151,0.0001366,2]
[337002688,1725299575412,-351.57017115,0.00014569,2]
[337002689,1725299575437,-683.67,0.00014706,2]
[337002690,1725299575460,-7146.34596288,0.00014997,2]
[337002691,1725299575483,-150.0,0.00014999,2]
[337002692,1725299575506,-500.0,0.00014999,2]
[337002693,1725299575529,-556.06335157,0.00014999,2]
[337002694,1725299575552,-501.49882417,0.00014999,2]
[337002695,1725299575575,-500.0,0.00014999,2]
[337002696,1725299575597,-500.0,0.00014999,2]
[337002697,1725299575620,-323.16575014,0.00014999,2]
[337002698,1725299575643,-500.0,0.00014999,2]
[337002699,1725299575667,-12936.57084009,0.00015,2]
[337002700,1725299576336,-25000.0,0.00015,2]
[337002701,1725299577055,-25000.0,0.00015,2]
[337002702,1725299578087,188.82,0.00025014,120]
[337002703,1725299584599,-24528.0,0.00015,2]
[337002704,1725299593333,-23900.0,0.0001499,3]
[337002705,1725299594198,500.0,0.00027,120]
[337002706,1725299599322,500.0,0.00027,120]
[337002707,1725299602280,200.0,0.00027,120]
[337002708,1725299612475,-30000.0,0.0001499,3]
[337002709,1725299620965,-32435.0,0.0001499,3]
[337002710,1725299638292,-30841.0,0.0001499,3]
[337002711,1725299887088,158.61,0.00010959,2]
[337002716,1725300205347,200.0,0.00027,120]
[337002777,1725300484085,170.59,0.00010959,2]
[337002953,1725300631494,-355.41834579,0.0001408,2]
[337002954,1725300631506,-342.92165421,0.0001408,2]
[337002955,1725300631519,-61.57834529,0.00014165,2]
[337002956,1725300631564,-459.8429188,0.00014165,2]
[337002958,1725300631574,-200.0,0.000147,5]
[337002959,1725300631583,-500.0,0.000148,5]
[337002960,1725300631594,-511.08108,0.0001485,2]
[337002961,1725300631603,-1189.59798073,0.0001485,2]
[337002962,1725300631612,-1000.0,0.00014856,2]
[337002963,1725300631622,-300.0,0.00014899,2]
[337002965,1725300631633,-300.0,0.00014899,2]
[337002966,1725300631644,-2439.84976041,0.000149,2]
[337002967,1725300631655,-347.96815075,0.000149,2]
[337002968,1725300631667,-250.0,0.000149,2]
[337002969,1725300631679,-392.16304759,0.000149,2]
[337002971,1725300631690,-3460.2277089,0.000149,2]
[337002974,1725300631951,-191.05723235,0.000149,2]
[337002975,1725300631961,-968.94515632,0.000149,2]
[337002976,1725300631972,-95.47424368,0.000149,2]
[337002977,1725300631981,-223.7244,0.000149,2]
[337002978,1725300631991,-167.93481959,0.000149,2]
[337002979,1725300632000,-800.0,0.000149,5]
[337002980,1725300632009,-2795.52799934,0.000149,2]
[337002981,1725300632020,-889.78912093,0.000149,2]
[337002982,1725300632029,-153.29,0.00014908,2]
[337002983,1725300632039,-150.88,0.0001499,2]
[337002984,1725300632051,-9594.93018032,0.00015,2]
[337002985,1725300632064,-505.95034743,0.00015,2]
[337002986,1725300632076,-18867.32608087,0.00015,2]
[337002987,1725300632088,-187770.78981874,0.00015,2]
[337002988,1725300632116,-1002.359416,0.00015,2]
[337002989,1725300632127,-7552.79375226,0.00015,2]
[337002990,1725300632140,-58572.76094215,0.00015,2]
[337002991,1725300632151,-919.70999,0.00015,2]
[337003001,1725300637624,-268.36,0.00014799,2]
[337003002,1725300637634,-30705.31906337,0.00015,2]
[337003003,1725300637645,-325.88,0.00015,2]
[337003004,1725300637702,-435.7576851,0.00015,2]
[337003005,1725300637714,-2709.48663959,0.00015,2]
[337003006,1725300637726,-756.50129239,0.00015,2]
[337003007,1725300637738,-2820.66603228,0.00015,2]
[337003008,1725300637749,-46652.81339131,0.00015,2]
[337003009,1725300637761,-3513.2,0.00015,2]
[337003010,1725300637773,-24094.72321773,0.00015,2]
[337003011,1725300637784,-1559.04212574,0.00015,2]
[337003012,1725300637796,-17956.08224966,0.00015,2]
[337003013,1725300637807,-421.78588728,0.00015,2]
[337003014,1725300637868,-425.4,0.00015,2]
[337003015,1725300637879,-4954.01943614,0.00015,2]
[337003016,1725300637891,-11129.9312,0.00015,2]
[337003017,1725300637903,-1503.10643675,0.00015,2]
[337003018,1725300637945,-872.46870705,0.00015,2]
[337003019,1725300637956,-571.53689557,0.00015,2]
[337003020,1725300638225,-2364.01451426,0.00015,2]
[337003023,1725300638237,-724.97184001,0.00015,2]
[337003029,1725300639653,-1258.90241225,0.00015,2]
[337003030,1725300639734,-1432.73401206,0.00015,2]
[337003031,1725300639746,-335.70065271,0.00015,2]
[337003032,1725300639757,-10264.97909603,0.00015,2]
[337003033,1725300639768,-3490.38491819,0.00015,2]
[337003034,1725300639780,-449.03088406,0.00015,2]
[337003035,1725300639796,-685.08301683,0.00015,2]
[337003036,1725300639808,-418.43404489,0.00015,2]
[337003037,1725300639819,-16959.17918805,0.00015,2]
[337003038,1725300639831,-4302.89567398,0.00015,2]
[337003039,1725300639842,-1072.66280005,0.00015,2]
[337003040,1725300639901,-1271088.05496409,0.00015,2]
[337003041,1725300639910,-73868.852684,0.00015,2]
[337003042,1725300639920,-15943.58,0.0001508,2]
[337003043,1725300639931,-800.0,0.000158,2]
[337003044,1725300639941,-3685.31712021,0.00015879,2]
[337003045,1725300639958,-3794.0,0.000159,2]
[337003046,1725300639970,-299.99,0.000159,2]
[337003047,1725300639980,-181.2,0.00015913,2]
[337003048,1725300639990,-153.57,0.00016012,2]
[337003049,1725300640001,-2373.55,0.00016016,2]
[337003050,1725300640011,-499.99,0.00016016,2]
[337003051,1725300640023,-208.94,0.00016018,2]
[337003052,1725300640032,-23900.0,0.00016047,2]
[337003053,1725300640041,-250.0,0.00016058,2]
[337003054,1725300640053,-2000.0,0.00016082,2]
[337003056,1725300640064,-250.0,0.00016105,2]
[337003058,1725300640075,-200.0,0.00016117,2]
[337003060,1725300640084,-4345.02,0.00016119,2]
[337003062,1725300640094,-250.0,0.00016122,2]
[337003064,1725300640105,-2988.79,0.00016124,2]
[337003066,1725300640114,-150.0,0.00016131,2]
[337003068,1725300640124,-219.96,0.00016147,2]
[337003070,1725300640136,-199.02,0.0001623,2]
[337003072,1725300640146,-420.0,0.00016308,2]
[337003074,1725300640155,-698.34,0.00016344,2]
[337003076,1725300640165,-150.0,0.00016438,2]
[337003078,1725300640175,-188.82,0.00016676,2]
[337003080,1725300640184,-1000.0,0.00016713,2]
[337003081,1725300640193,-167.93481959,0.00016722,2]
[337003083,1725300640203,-153.29,0.00016772,2]
[337003085,1725300640213,-3685.31712021,0.00016858,2]
[337003087,1725300640224,-1475.76,0.00017123,2]
[337003089,1725300640233,-5853.0,0.00017313,2]
[337003091,1725300640243,-13461.0,0.00017313,2]
[337003093,1725300640252,-3731.0,0.00017313,2]
[337003095,1725300640262,-1144.0,0.00017313,2]
[337003097,1725300640272,-188.121,0.00017313,2]
[337003099,1725300640281,-1078.0,0.00017313,2]
[337003101,1725300640291,-511.08108,0.0001735,2]
[337003103,1725300640300,-447.0,0.00017517,2]
[337003105,1725300640309,-1545.0,0.00017517,2]
[337003107,1725300640319,-623.0,0.00017517,2]
[337003108,1725300640328,-1300.87,0.00017517,2]
[337003110,1725300640338,-150.387,0.00017517,2]
[337003112,1725300640348,-930.0,0.00017517,2]
[337003114,1725300640358,-556.0,0.00017517,2]
[337003116,1725300640367,-810.0,0.00017517,2]
[337003118,1725300640377,-1997.991,0.00017517,2]
[337003120,1725300640387,-552.0,0.00017517,2]
[337003122,1725300640396,-248.0,0.00017517,2]
[337003124,1725300640406,-804.0,0.00017517,2]
[337003126,1725300640416,-3322.0,0.00017517,2]
[337003128,1725300640425,-150.0,0.00017517,2]
[337003130,1725300640434,-1139.0,0.00017517,2]
[337003131,1725300640443,-427.09,0.00017534,2]
[337003134,1725300640459,-218.78,0.00017592,2]
[337003136,1725300640469,-3685.31712021,0.00017837,2]
[337003138,1725300640479,-587.0,0.0001785,2]